Cogmind - Beta 10.2 @@@ ROGUE MODE // 2021.08.01 @ 15:22:31 Player: Demise Result: Destroyed by as-76076 with Assembled Rifle Performance ------------- Evolutions (0) 0 Regions Visited (4) 800 Robots Destroyed (41) 205 Value Destroyed (756) 756 Prototype IDs (2) 40 Alien Tech Used (0) 0 Bonus (0) 0 TOTAL SCORE: 1801 Bonus ------- None Cogmind --------- Core Integrity 0/250 Matter 234/300 Energy 18/100 System Corruption 0% Temperature Cool (51) Movement Treading (180) Ox1 Location -9/Mines Parts ------- > --- POWER (1) -------- (None) > --- PROPULSION (2) --- Medium Treads > --- UTILITY (2) ------ Large Storage Unit Large Storage Unit > --- WEAPON (2) ------- Lightning Gun > --- INVENTORY (16) --- Light Treads Improved Heat Sink High-capacity Battery (400) Improved Signal Interpreter Improved Medium Armor Plating Improved Shield Generator Hacking Suite Hacking Suite Improved Trap Extractor Light Assault Rifle Improved Light Cannon Mining Laser Peak State ------------ > --- POWER ------------ Improved Ion Engine > --- PROPULSION ------- Light Treads Medium Treads > --- UTILITY ---------- Large Storage Unit Large Storage Unit > --- WEAPON ----------- Light Assault Rifle Light Assault Rifle > --- INVENTORY -------- Light Treads Light Treads Improved Heat Sink High-capacity Battery Improved Signal Interpreter Improved Targeting Computer Improved Medium Armor Plating Hacking Suite Hacking Suite Lightning Gun Improved Light Cannon Grenade Launcher Mining Laser Heavy Explosive Trap Heavy Explosive Trap Heavy Explosive Trap [Rating: 15] Favorites ----------- Power Light Nuclear Core Engine Improved Ion Engine Power Core Light Nuclear Core Propulsion Light Treads Treads Light Treads Utility Large Storage Unit Device Improved Heat Sink Storage Large Storage Unit Processor Improved Targeting Computer Weapon Light Assault Rifle Energy Gun EM Pulse Gun Ballistic Gun Light Assault Rifle Launcher Grenade Launcher Special Weapon Mining Laser Build | -11 -10 -10 -10 -9 ------- Run | Scr Mat Min Exi Min Slots Evolved . | . . . . . Power . | . . . . . Propulsion . | . . . . . Utility . | . . . . . Weapon . | . . . . . Parts Attached 42 | 4 21 9 . 8 Power 4 | . 3 1 . . Engine 2 | . 1 1 . . Core 2 | . 2 . . . Reactor . | . . . . . Propulsion 7 | 2 2 1 . 2 Treads 7 | 2 2 1 . 2 Leg . | . . . . . Wheel . | . . . . . Hover . | . . . . . Flight . | . . . . . Utility 5 | . 5 . . . Device 1 | . 1 . . . Storage 2 | . 2 . . . Processor 2 | . 2 . . . Hackware . | . . . . . Protection . | . . . . . Artifact . | . . . . . Weapon 26 | 2 11 7 . 6 Energy Gun 2 | . . 1 . 1 Energy Cannon . | . . . . . Ballistic Gun 14 | 2 6 3 . 3 Ballistic Cannon . | . . . . . Launcher 5 | . . 3 . 2 Special Weapon 5 | . 5 . . . Impact Weapon . | . . . . . Slashing Weapon . | . . . . . Piercing Weapon . | . . . . . Special Melee Weapon . | . . . . . Unidentified Prototypes . | . . . . . Parts Lost 4 | . . . . 4 Power 1 | . . . . 1 Propulsion 1 | . . . . 1 Utility . | . . . . . Weapon 2 | . . . . 2 Highest Loss Streak 4 | . . . . 4 Average Slot Usage (%) 94 | . 89 100 100 97 Engine 4 | . . 3 14 13 Core 8 | . 10 10 . . Treads 28 | . 28 28 28 28 Storage 20 | . 12 28 28 28 Processor 4 | . 8 . . . Ballistic Gun 25 | . 25 26 28 26 Special Weapon 1 | . 2 . . . Naked Turns . | . . . . . Heaviest Build 42 | 3 40 42 41 41 Greatest Support 48 | 20 40 40 40 48 Greatest Overweight (x) 2 | . 2 1 1 1 Average Overweight (x) . | . . . 1 . Largest Inventory Capacity 16 | 4 16 16 16 16 Average Capacity 12 | 4 9 16 16 16 Most Carried 16 | 4 16 16 16 16 Average Carried 11 | 1 7 15 16 15 Final Capacity 16 | 4 16 16 16 16 Final Carried 16 | 3 16 16 16 12 Class Distribution -------------------- 95% | Mutant 4% | Scavenger-Mutant Dominant Class ---------------- Mutant | -10/Materials Mutant | -10/Mines Mutant | -10/Exiles Mutant | -9/Mines Resources | -11 -10 -10 -10 -9 ----------- Run | Scr Mat Min Exi Min Matter Collected 985 | 288 442 81 150 24 Remotely . | . . . . . Salvage Created 1191 | 159 902 105 . 25 Parts 89 | 13 54 15 . 7 Haulers Intercepted 2 | . 2 . . . Recyclers Shooed 3 | . 2 1 . . Parts Field Recycled . | . . . . . Retrieved Matter . | . . . . . Parts Self-Destructed . | . . . . . Prevented . | . . . . . Kills | -11 -10 -10 -10 -9 ------- Run | Scr Mat Min Exi Min Combat Hostiles Destroyed 25 | . 12 8 . 5 Guns 14 | . 12 2 . . AOE 11 | . . 6 . 5 Classes Destroyed 9 | 2 6 . . 1 Worker 3 | . 1 2 . . Tunneler 4 | 4 . . . . Hauler 2 | . 2 . . . Recycler 5 | 1 4 . . . Operator 2 | . 2 . . . Watcher 2 | . 2 . . . Swarmer 11 | . 3 5 . 3 Grunt 12 | . 9 3 . . Assembled 2 | . . . . 2 Best Kill Streak 5 | 4 5 5 . 3 Combat Bots Only 3 | . 3 3 . 3 Max Kills in Single Turn 3 | 1 2 3 . 3 Gunslinging 1 | . 1 . . . Exploded 3 | . . 2 . 3 Melee . | . . . . . Uniques/NPCs Destroyed . | . . . . . Combat | -11 -10 -10 -10 -9 -------- Run | Scr Mat Min Exi Min Damage Taken 1287 | . 321 261 . 705 Core 256 | . 91 26 . 139 Absorbed by Shields . | . . . . . Core Remaining (%) 100 | 100 . . . . Volleys Fired 117 | 12 78 20 . 7 Largest 2 | 2 2 2 . 1 Hottest 120 | 40 120 60 . 55 Shots Fired 204 | 24 143 30 . 7 Gun 178 | 24 129 21 . 4 Cannon . | . . . . . Launcher 12 | . . 9 . 3 Special 14 | . 14 . . . Kinetic 167 | 24 129 14 . . Thermal 14 | . 14 . . . Explosive 12 | . . 9 . 3 Electromagnetic 11 | . . 7 . 4 Robot Hit Streak 14 | 11 14 5 . 5 Robot Miss Streak 5 | 3 5 3 . 2 Penetration Max . | . . . . . Secondary Targets 2 | . 2 . . . Max Gunslinging Chain 1 | . 1 . . . Shots Hit Robots 114 | 15 83 11 . 5 Core Hits 74 | 7 41 18 . 8 Critical Hits 1 | . 1 . . . Critical Kills . | . . . . . Critical Parts Destroyed 1 | . 1 . . . Melee Attacks . | . . . . . Impact . | . . . . . Slashing . | . . . . . Piercing . | . . . . . Sneak Attacks . | . . . . . Combat Hostiles . | . . . . . Follow-up Attacks . | . . . . . Damage Inflicted 2030 | 150 900 605 . 375 Guns 1187 | 150 894 109 . 34 Cannons . | . . . . . Explosions 837 | . . 496 . 341 Melee . | . . . . . Ramming 6 | . 6 . . . Kinetic 1153 | 150 894 109 . . Thermal . | . . . . . Explosive 837 | . . 496 . 341 Electromagnetic 34 | . . . . 34 Impact . | . . . . . Slashing . | . . . . . Piercing . | . . . . . Highest Corruption . | . . . . . Average Corruption . | . . . . . Corruption Purged . | . . . . . Overload Shots . | . . . . . Overflow Damage 5 | . . . . 5 Projectiles . | . . . . . Explosions 5 | . . . . 5 Melee . | . . . . . Knockbacks . | . . . . . Impact . | . . . . . Kinetic . | . . . . . Secondary . | . . . . . Self-Inflicted Damage 85 | . . 47 . 38 Shots 5 | . . 3 . 2 Rammed 1 | . 1 . . . Targets Rammed 1 | . 1 . . . Kicked . | . . . . . Crushed . | . . . . . Highest Temperature 76 | . 28 36 . 76 Average Temperature 10 | . 5 14 . 33 Received Heat Transfer 352 | . 135 57 . 160 Siege Activations . | . . . . . Robots Corrupted . | . . . . . Combat Hostiles . | . . . . . Parts Fried . | . . . . . Impact Corruptions . | . . . . . Robots Melted . | . . . . . Combat Hostiles . | . . . . . Parts Melted . | . . . . . Heat Transferred . | . . . . . Parts Sabotaged . | . . . . . Parts Stolen . | . . . . . Parts Stripped . | . . . . . Power Chain Reactions . | . . . . . Missiles Intercepted . | . . . . . Alert | -11 -10 -10 -10 -9 ------- Run | Scr Mat Min Exi Min Peak Influence 367 | 25 338 367 . 70 Initial 33 | . 16 33 . . Average 156 | 8 197 138 . 63 Maximum Alert Level 1 | . 1 1 . . Low Security (%) 67 | 100 62 60 . 100 Level 1 32 | . 37 39 . . Level 2 . | . . . . . Level 3 . | . . . . . Level 4 . | . . . . . Level 5 . | . . . . . High Security . | . . . . . Max Security . | . . . . . Squads Dispatched 6 | . 4 1 . 1 Investigation 4 | . 2 1 . 1 Extermination . | . . . . . Reinforcement 2 | . 2 . . . Assault . | . . . . . Garrison . | . . . . . Intercept . | . . . . . Construction Impeded . | . . . . . Haulers Reinforced . | . . . . . Stealth | -11 -10 -10 -10 -9 --------- Run | Scr Mat Min Exi Min Distress Signals . | . . . . . Communications Jammed . | . . . . . Distress Signals . | . . . . . Times Spotted 63 | . 26 10 . 27 Peak Tracking Total 20 | . 4 3 . 20 Tactical Retreats 4 | . 1 2 . 1 Traps | -11 -10 -10 -10 -9 ------- Run | Scr Mat Min Exi Min Traps Triggered 1 | . . . . 1 Indirectly . | . . . . . Trap Hack Attempts . | . . . . . Triggered . | . . . . . Disarmed . | . . . . . Reprogrammed . | . . . . . Reused 2 | . . . . 2 Traps Extracted . | . . . . . Installed 3 | . . . . 3 Triggered . | . . . . . Machines | -11 -10 -10 -10 -9 ---------- Run | Scr Mat Min Exi Min Machines Disabled 7 | . . 7 . . Max in Single Turn 6 | . . 6 . . Machines Sabotaged . | . . . . . Garrisons Compromised . | . . . . . Overloaded Fab Kills . | . . . . . Fab Network Shutdowns . | . . . . . Hacking | -11 -10 -10 -10 -9 --------- Run | Scr Mat Min Exi Min Machines Accessed 11 | . 8 1 . 2 Terminals 8 | . 6 1 . 1 Fabricators . | . . . . . Repair Stations 1 | . 1 . . . Recycling Units 1 | . 1 . . . Scanalyzers . | . . . . . Garrison Access . | . . . . . Total Hacks 39 | . 32 3 . 4 Successful 23 | . 20 2 . 1 Failed 15 | . 11 1 . 3 Catastrophic . | . . . . . Database Lockouts 1 | . 1 . . . Manual 30 | . 24 3 . 3 Terminals 31 | . 25 3 . 3 Fabricators . | . . . . . Repair Stations 4 | . 4 . . . Recycling Units 3 | . 3 . . . Scanalyzers . | . . . . . Garrison Access . | . . . . . Terminal Hacks 10 | . 7 2 . 1 Part Schematic 2 | . 1 1 . . Robot Analysis 3 | . 2 1 . . Prototype ID Bank 1 | . 1 . . . Open Door 1 | . . . . 1 Branch Access Points 1 | . 1 . . . Terminal Index 1 | . 1 . . . Locate Traps 1 | . 1 . . . Fabricator Hacks . | . . . . . Repair Station Hacks 3 | . 3 . . . Scan Component 2 | . 2 . . . Repair 1 | . 1 . . . Recycling Unit Hacks 1 | . 1 . . . Retrieve Components 1 | . 1 . . . Scanalyzer . | . . . . . Garrison Access Hacks . | . . . . . Unauthorized Hacks 9 | . 9 . . . Terminals 8 | . 8 . . . Botnet 6 | . 6 . . . Operators 2 | . 2 . . . Fabricators . | . . . . . Repair Stations . | . . . . . Recycling Units 1 | . 1 . . . Tunnel 1 | . 1 . . . Scanalyzers . | . . . . . Garrison Access . | . . . . . Data Cores Recovered . | . . . . . Used . | . . . . . Hacking Detections 10 | . 8 1 . 1 Full Trace Events 6 | . 4 1 . 1 Feedback Events . | . . . . . Feedback Blocked . | . . . . . Robot Schematics Acquired . | . . . . . Robots Built . | . . . . . Matter . | . . . . . Time . | . . . . . Total Robot Build Rating . | . . . . . Part Schematics Acquired 2 | . 1 1 . . Parts Built . | . . . . . Matter . | . . . . . Time . | . . . . . Total Part Build Rating . | . . . . . Parts Repaired 1 | . 1 . . . Time 18 | . 18 . . . Parts Recycled . | . . . . . Recycled Matter . | . . . . . Retrieved Matter . | . . . . . Retrieved Components . | . . . . . Parts Scanalyzed . | . . . . . Part Schematics Acquired . | . . . . . Parts Damaged . | . . . . . Bothacking | -11 -10 -10 -10 -9 ------------ Run | Scr Mat Min Exi Min Used RIF Installer . | . . . . . Robots Hacked . | . . . . . Non-combat . | . . . . . Combat . | . . . . . Robot Hacks Applied . | . . . . . Relay Couplers Released . | . . . . . Robots Rewired . | . . . . . Allies Hacked . | . . . . . Hacks Repelled . | . . . . . Allies | -11 -10 -10 -10 -9 -------- Run | Scr Mat Min Exi Min Total Allies . | . . . . . Largest Group . | . . . . . Highest-Rated Group . | . . . . . Highest-Rated Ally . | . . . . . Total Orders . | . . . . . Ally Attacks . | . . . . . Total Damage . | . . . . . Kills . | . . . . . Allies Corrupted . | . . . . . Allies Melted . | . . . . . Intel | -11 -10 -10 -10 -9 ------- Run | Scr Mat Min Exi Min Robot Analysis Total 3 | . 2 1 . . Derelict Logs Recovered 2 | . . 2 . . Drone Launches . | . . . . . Drone Recoveries . | . . . . . Exploration | -11 -10 -10 -10 -9 ------------- Run | Scr Mat Min Exi Min Turns Passed 2777 | 69 1281 853 285 289 Spaces Moved 1707 | 47 887 469 159 145 Core 461 | 46 415 . . . Treads 1246 | 1 472 469 159 145 Legs . | . . . . . Wheels . | . . . . . Hover . | . . . . . Flight . | . . . . . Fastest Speed 50 | 50 50 160 180 160 Average Speed 135 | 52 109 166 180 174 Slowest Speed 180 | 160 160 180 180 180 Overloaded Moves . | . . . . . Propulsion Burnouts . | . . . . . Robots Hopped . | . . . . . Cave-ins Triggered . | . . . . . Exploration Rate (%) 55 | 4 91 97 54 29 Regions Visited 4 Branch Regions 3 Pre-discovered Areas 2 | . 1 1 . . Known Exits Taken 1 | . 1 . . . Unknown Exits Taken 3 | 1 . 1 1 . Scrap Searched 1 | . . 1 . . Spaces Dug 7 | . 7 . . . Terrain Destroyed 115 | . 12 74 . 29 Melee . | . . . . . Projectile 12 | . 12 . . . AOE 103 | . . 74 . 29 Terrain Rammed . | . . . . . Walls Destroyed . | . . . . . Machines Disabled . | . . . . . Actions | -11 -10 -10 -10 -9 --------- Run | Scr Mat Min Exi Min Total 1948 | 67 1034 510 158 179 Wait 28 | . 22 6 . . Move 1703 | 46 886 468 158 145 Hop . | . . . . . Pick Up 28 | 4 16 3 . 5 Fast Attach 10 | 4 6 . . . Attach 5 | . 3 1 . 1 Detach 5 | . 5 . . . Swap 27 | . 12 8 . 7 Drop 21 | 1 5 4 . 11 Fire 117 | 12 78 20 . 7 Melee . | . . . . . Ram . | . . . . . Kick . | . . . . . Crush 1 | . 1 . . . Escape Stasis . | . . . . . Rewire . | . . . . . Trap 3 | . . . . 3 Miscellaneous . | . . . . . Route ------- -11/Scrapyard -10/Materials (discovered 4 exits: *Mat x3 / *Min) -10/Mines (discovered 3 exits: *Mat x2 / [*Exi]) -10/Exiles -9/Mines History --------- Turn | Location | Event 18 | -11/Scrapyard | Discovered new exit (range 16) 70 | -11/Scrapyard | Entered Materials 157 | -10/Materials | Discovered new exit (range 4) 165 | -10/Materials | Discovered new exit (range 16) 280 | -10/Materials | Discovered new exit (range 10) 324 | -10/Materials | Discovered new exit (range 9) 331 | -10/Materials | Build established: Mutant 435 | -10/Materials | Central database locked down 436 | -10/Materials | Identified exit to Mines 553 | -10/Materials | Repaired Broken Lgt. Assault Rifle 744 | -10/Materials | Identified exit to Materials 1351 | -10/Materials | Entered Mines 1358 | -10/Mines | Received a Rocket Launcher from a helpful Derelict 1499 | -10/Mines | Discovered exit to Materials (range 5) 1702 | -10/Mines | Learned location of Storage (-8) 1716 | -10/Mines | Discovered exit to Materials (range 4) 1717 | -10/Mines | Learned Materials terminal intel 1974 | -10/Mines | Found a hidden stash of uninstalled traps 2195 | -10/Mines | Deemed a non-threat by the Exiles lab entrance 2195 | -10/Mines | Discovered new exit (range 5) 2204 | -10/Mines | Entered Exiles 2204 | -10/Exiles | Found Exiles lab abandoned 2475 | -10/Exiles | Discovered new exit (range 10) 2489 | -10/Exiles | Entered Mines 2502 | -9/Mines | Core integrity fell below 50% 2666 | -9/Mines | Met a Derelict who couldn't figure out how to use a Trap Extractor 2738 | -9/Mines | Assembled infested the area 2743 | -9/Mines | Assisted by a Guerilla fighting off Assembled 2760 | -9/Mines | Core integrity fell below 20% 2778 | -9/Mines | Destroyed by as-76076 with Assembled Rifle Last Messages --------------- 02746_ as-02762 destroyed. 02746_ Grenade Launcher destroyed. 02746_ Destroyed Grenade Launcher. 02746_ 18-TW6(h): "I'll hold them off! Go on ahead or try to find another way!" 02746_ HV Slug penetrates Wall. 02750_ HV Slug penetrates as-42919. 02752_ 18-TW6(h) destroyed. 02752_ Dropped Heavy Explosive Trap. 02753_ Installed Heavy Explosive Trap. 02754_ as-42919 triggered Heavy Explosive Trap. 02754_ An explosion rips through the floor. 02754_ as-42919 destroyed. 02754_ Imp. Ion Engine destroyed. 02754_ as-30331 destroyed. 02762_ Dropped Heavy Explosive Trap. 02763_ Installed Heavy Explosive Trap. 02767_ Lgt. Assault Rifle destroyed. 02774_ Lgt. Treads destroyed. 02777_ Dropped Heavy Explosive Trap. 02778_ Installed Heavy Explosive Trap. Map ----- +----------------------------------------------------+ | ????? ???????????????????????????????????????????? | | ????? ???????????????????????????????????????????? | | ????? ???????????????????????????????????????????? | | ????# #??????????????????????????????????????????? | | ????# #??????????????????????????????????????????? | | ????# #??????????????????????????????????????????? | | ????# #??????????????????????????????????????????? | | ????# #??????????????????????????????????????????? | | ###?# #??????????#???????????????????????????????? | | ### ######### #???????????????????????????????? | | ## ## #???????????????????????????????? | | #???????????????????????????????? | | #### #######????????????????????????????????? | | ##??# #??????????????????????????????????????? | | ##???# #??????????????####????????????????????? | | ##???## #?????????????? ?????????????????????? | | #??### #?????????????? ?????????????????????? | | #??# = #?????????????# #?????????????????????? | | ##??# * ##?????????????# #?????????????????????? | | ##### [ #?######???????# #?????????????????????? | | # [ ###" !##??????# #?????????????????????? | | # #### = ! #???#### #?????????????????????? | | # ##?# !=^![#??## # ##????????????????????? | | # """ #??##^!! ##?## ##???????????????????? | | # """ #??### ##### #???????????????????? | | # """ #?## ## @ #???????????????????? | | T #?# ## ##???????????????????? | | ########## % ###????????????????????? | | # # aaa ##?????????????????????? | | #### # #?????????????????????? | | ####### #??## ## aa #?????????????????????? | | ??????# #???## ##### #?????????????????????? | | ???#### #????# #???# a #???#????????????????? | | # ## #????# #???# ## #### ???????? | | ###### #???## = ??????? | | # #????### aa % ??????? | | ## ########??????# # # #?????????? | | ?#### ##??????????????###### ####?????????????? | | ????####??????????????????????###????????????????? | | ?????????????????????????????????????????????????? | | | | | | | | | | | | | | | | | | | | | +----------------------------------------------------+ Best States ------------- Heat Dissipation 39 Energy Generation 14 Energy Capacity 265 Matter Stores 300 Matter Capacity 300 Sight Range 16 Terrain Scan Density 10 Evasion (%) 50 Targeting Accuracy 6 Recoil Reduction 2 Item Schematics ----------------- Hcp. Storage Unit | -10/Materials | Hacked Med. Storage Unit | -10/Mines | Hacked Robot Schematics ------------------ None Fabricated ------------ Nothing Alien Tech Used ----------------- None Achievements -------------- None Challenges ------------ None Game ------ Seed GhostOpticalPick Manual? 0 Play Time 00:22:33 Cumulative 440.3 hours Start 2021.08.01 @ 09:45:39 End 2021.08.01 @ 15:22:31 Sessions 3 Manual Loads 0 Difficulty Rogue Special Mode None Game No. 354 Rogue 354 Adventurer 0 Explorer 0 Win Type - Total 1 Types 0/0/0/1/0/0/0/0/0 Lore% 72 Gallery% 82 Achievement% 62 Wizard Run 0 Options --------- ASCII 0 Keyboard 1 Movement Numpad Keybinds 0 Fullscreen 1 Font 12/Terminus Map View 83x54 Tactical HUD 1 Map Filters NONE Filters NONE Steam 1 RUN: 0099648e-13ca-4f4d-bd61-f2dae1d50411